bitfinex/quotes_BTCUSD_20250601
["timestamp","ask_amount","ask_price","bid_price","bid_amount"]
[1748737857033,0.08213384,104380.0,104370.0,0.33626025]
[1748737857233,0.09171357,104380.0,104370.0,0.33626025]
[1748737857642,0.1012933,104380.0,104370.0,0.33626025]
[1748737857822,0.10129321,104380.0,104370.0,0.33626025]
[1748737858022,0.13026545,104380.0,104370.0,0.33626025]
[1748737858196,0.14164208,104380.0,104370.0,0.24040595]
[1748737858395,0.15122218,104380.0,104370.0,0.24040595]
[1748737858600,0.10308992,104380.0,104370.0,0.25835932]
[1748737858941,0.11266993,104380.0,104370.0,0.24040595]
[1748737859142,0.11266993,104380.0,104370.0,0.23540595]
[1748737859310,0.11266993,104380.0,104370.0,0.23840595]
[1748737859711,0.11266993,104380.0,104370.0,0.23340595]
[1748737860235,0.11266993,104380.0,104370.0,0.23640595]
[1748737860457,0.11266984,104380.0,104370.0,0.24538267]
[1748737860660,0.10308992,104380.0,104370.0,0.23640595]
[1748737860881,0.11266984,104380.0,104370.0,0.27008081]
[1748737861084,0.11266984,104380.0,104370.0,0.23640595]
[1748737861496,0.09351019,104380.0,104370.0,0.23640595]
[1748737861708,0.08213384,104380.0,104370.0,0.6011495]
[1748737861917,0.08213384,104380.0,104370.0,0.60788425]
[1748737862133,0.08213384,104380.0,104370.0,0.9148842]
[1748737862325,0.08213384,104380.0,104370.0,0.9081495]
[1748737862525,0.08213384,104380.0,104370.0,1.0063095]
[1748737862740,0.08213384,104380.0,104370.0,1.02426734]
[1748737862942,0.08213384,104380.0,104370.0,1.3463095]
[1748737863062,0.08213384,104380.0,104370.0,1.36202226]
[1748737863266,0.08213384,104380.0,104370.0,1.08639891]
[1748737863480,0.08213384,104380.0,104370.0,1.3463095]
[1748737864337,0.08213384,104380.0,104370.0,1.07742025]
[1748737864934,0.08213384,104380.0,104370.0,1.08639892]
[1748737865136,0.08213384,104380.0,104370.0,1.09537759]
[1748737865344,0.08213384,104380.0,104370.0,1.10435626]
[1748737865546,0.08213384,104380.0,104370.0,1.07742025]
[1748737865748,0.08213384,104380.0,104370.0,1.08639892]
[1748737865949,0.08213384,104380.0,104370.0,1.10435626]
[1748737866154,0.08213384,104380.0,104370.0,1.08639892]
[1748737866350,0.08213384,104380.0,104370.0,0.77939892]
[1748737866580,0.08213384,104380.0,104370.0,0.75313317]
[1748737866778,0.09171357,104380.0,104370.0,0.76435693]
[1748737867023,0.09171348,104380.0,104370.0,0.36823727]
[1748737867180,0.09171348,104380.0,104370.0,0.36150263]
[1748737867386,0.09171339,104380.0,104370.0,0.37048239]
[1748737867560,0.08213384,104380.0,104370.0,0.36150263]
[1748737868081,0.08213384,104380.0,104370.0,0.36823718]
[1748737868285,0.08213384,104380.0,104370.0,0.36823726]
[1748737868494,0.08213384,104380.0,104370.0,0.36823717]
[1748737868647,0.08213384,104380.0,104370.0,0.36150263]
[1748737868841,0.08213384,104380.0,104370.0,0.38844093]
[1748737869044,0.08213384,104380.0,104370.0,0.37721663]
[1748737869290,0.08213384,104380.0,104370.0,0.36150263]
[1748737869487,0.08213384,104380.0,104370.0,0.37048206]
[1748737869717,0.08213384,104380.0,104370.0,0.36150263]
[1748737869937,0.08213384,104380.0,104370.0,0.72624618]
[1748737870166,0.08213384,104380.0,104370.0,1.07522524]
[1748737870370,0.08213384,104380.0,104370.0,1.07298021]
[1748737871003,0.07279631,104380.0,104370.0,1.35084786]
[1748737871211,0.07279631,104380.0,104370.0,1.34186946]
[1748737871621,0.07279631,104380.0,104370.0,1.35982515]
[1748737871828,0.07279631,104380.0,104370.0,1.58906589]
[1748737872040,0.07279631,104380.0,104370.0,1.57111031]
[1748737872867,0.07279631,104380.0,104370.0,1.03333181]
[1748737873070,0.07279631,104380.0,104370.0,1.57111031]
[1748737873687,0.07279631,104380.0,104370.0,1.58906511]
[1748737873891,0.07279631,104380.0,104370.0,1.57784335]
[1748737874105,0.07279631,104380.0,104370.0,1.57111031]
[1748737874407,0.07279631,104380.0,104370.0,1.58906505]
[1748737874639,0.07279631,104380.0,104370.0,1.57111031]
[1748737875380,0.07279631,104380.0,104370.0,1.59579804]
[1748737875580,0.07279631,104380.0,104370.0,1.57784333]
[1748737875803,0.07279631,104380.0,104370.0,1.57111031]
[1748737876410,0.07279631,104380.0,104370.0,1.59579816]
[1748737876698,0.07279631,104380.0,104370.0,1.30222106]
[1748737876848,0.07279631,104380.0,104370.0,1.60870106]
[1748737877034,0.07279631,104380.0,104370.0,1.59424021]
[1748737877549,0.07279631,104380.0,104370.0,1.86312946]
[1748737878176,0.07279631,104380.0,104370.0,1.86986252]
[1748737878354,0.07279631,104380.0,104370.0,1.88733735]
[1748737878754,0.07279631,104380.0,104370.0,1.59376021]
[1748737878966,0.07279631,104380.0,104370.0,1.60049352]
[1748737879179,0.07279631,104380.0,104370.0,1.60049351]
[1748737879542,0.07279631,104380.0,104370.0,1.86264946]
[1748737880261,0.07279631,104380.0,104370.0,1.59368021]
[1748737880457,0.07279631,104380.0,104370.0,1.32479096]
[1748737880758,0.07279631,104380.0,104370.0,1.28712021]
[1748737880915,0.07279631,104380.0,104370.0,1.59380021]
[1748737881122,0.07279631,104380.0,104370.0,1.28712021]
[1748737881324,0.07279631,104380.0,104370.0,1.59376021]
[1748737881662,0.07279631,104380.0,104370.0,1.62967269]
[1748737881881,0.07279631,104380.0,104370.0,1.04292082]
[1748737882105,0.07279631,104380.0,104370.0,1.3429072]
[1748737882304,0.07279631,104380.0,104370.0,1.36086461]
[1748737882515,0.07279631,104380.0,104370.0,1.3429072]
[1748737882941,0.07279631,104380.0,104370.0,1.35188589]
[1748737883162,0.07279631,104380.0,104370.0,0.60756591]
[1748737883393,0.07279631,104380.0,104370.0,0.9052272]
[1748737883550,0.07279631,104380.0,104370.0,0.61654515]
[1748737883790,0.07279631,104380.0,104370.0,0.9052272]
[1748737884162,0.10153606,104380.0,104370.0,0.40184548]
[1748737884393,0.10153606,104380.0,104370.0,0.40184568]
[1748737884394,0.09195587,104380.0,104370.0,0.40184568]
[1748737884615,0.12986222,104380.0,104370.0,0.39960091]
[1748737884819,0.13944223,104380.0,104370.0,0.40184583]
[1748737885032,0.13944223,104380.0,104370.0,0.42653979]
[1748737885226,0.13944223,104380.0,104370.0,0.39286644]
[1748737885455,0.10333259,104380.0,104370.0,0.41980551]
[1748737885656,0.30452036,104380.0,104370.0,0.29701232]
[1748737885805,0.30272365,104380.0,104370.0,0.29701232]
[1748737886136,0.30272365,104380.0,104370.0,0.31272679]
[1748737886334,0.12069635,104380.0,104370.0,0.31557287]
[1748737886540,0.16135832,104380.0,104370.0,0.30659306]
[1748737886764,0.10333314,104380.0,104370.0,0.31332731]
[1748737886876,0.10333314,104380.0,104370.0,0.32230754]
[1748737887104,0.1015355,104380.0,104370.0,0.34924781]
[1748737887300,0.11111551,104380.0,104370.0,0.34924781]
[1748737887526,0.1206957,104380.0,104370.0,0.31557248]
[1748737887729,0.1206957,104380.0,104370.0,0.34026772]
[1748737887952,0.1206957,104380.0,104370.0,0.34924781]
[1748737888123,0.11111551,104380.0,104370.0,0.34026772]
[1748737888381,0.1206957,104380.0,104370.0,0.33128763]
[1748737888615,0.15372147,104380.0,104370.0,0.32455257]
[1748737888768,0.12249241,104380.0,104370.0,0.31557248]
[1748737889172,0.31410072,104380.0,104370.0,0.31557248]
[1748737889361,0.30272428,104380.0,104370.0,0.29641109]
[1748737889559,0.10153633,104380.0,104370.0,0.30599174]
[1748737889782,0.13264616,104380.0,104370.0,0.31497183]
[1748737890080,0.10333304,104380.0,104370.0,0.30599174]
[1748737890451,0.09375285,104380.0,104370.0,0.32395192]
[1748737890663,0.10333304,104380.0,104370.0,0.3217069]
[1748737890860,0.09195568,104380.0,104370.0,0.33293201]
[1748737891062,0.10153578,104380.0,104370.0,0.3127268]
[1748737891271,0.10153578,104380.0,104370.0,0.32395192]
[1748737891474,0.1129125,104380.0,104370.0,0.30599174]
[1748737891694,0.08237586,104380.0,104370.0,0.32170689]
[1748737891917,0.08237586,104380.0,104370.0,0.3127268]
[1748737892120,0.08237586,104380.0,104370.0,0.33966672]
[1748737892321,0.08237586,104380.0,104370.0,0.33068674]
[1748737892524,0.07279631,104380.0,104370.0,0.67747035]
[1748737892918,0.07279631,104380.0,104370.0,0.4085811]
[1748737893145,0.07279631,104380.0,104370.0,0.42429505]
[1748737893316,0.07279631,104380.0,104370.0,0.28398466]
[1748737893317,0.31401423,104380.0,104370.0,0.28398466]
[1748737893516,0.31401423,104380.0,104370.0,0.32170717]
[1748737893742,0.31230365,104380.0,104370.0,0.34026807]
[1748737893919,0.31230365,104380.0,104370.0,0.34026892]
[1748737894227,0.31230365,104380.0,104370.0,0.32904357]
[1748737894429,0.12069607,104380.0,104370.0,0.32230836]
[1748737894649,0.12249278,104380.0,104370.0,0.32230836]
[1748737894847,0.12249278,104380.0,104370.0,0.32904307]
[1748737895187,0.1129125,104380.0,104370.0,0.33128816]
[1748737895365,0.1129125,104380.0,104370.0,0.32230772]
[1748737895781,0.1285125,104380.0,104370.0,0.32230772]
[1748737895988,0.13809278,104380.0,104370.0,0.34700387]
[1748737896307,0.15369278,104380.0,104370.0,0.32230772]
[1748737896611,0.15369278,104380.0,104370.0,0.34700396]
[1748737896814,0.13453231,104380.0,104370.0,0.32230772]
[1748737897016,0.1441125,104380.0,104370.0,0.32230772]
[1748737897224,0.1441125,104380.0,104370.0,0.33128817]
[1748737897429,0.1441125,104380.0,104370.0,0.34924915]
[1748737897645,0.1441125,104380.0,104370.0,0.32230772]
[1748737897852,0.1441125,104380.0,104370.0,0.32904303]
[1748737898056,0.1441125,104380.0,104370.0,0.33128824]
[1748737898233,0.1441125,104380.0,104370.0,0.32904307]
[1748737898445,0.1441125,104380.0,104370.0,0.34924914]
[1748737898826,0.1441125,104380.0,104370.0,0.34026867]
[1748737899002,0.1441125,104380.0,104370.0,0.32230772]
[1748737899267,0.1441125,104380.0,104370.0,0.3290431]
[1748737899476,0.1441125,104380.0,104370.0,0.32230772]
[1748737900293,0.1441125,104380.0,104370.0,0.35598452]
[1748737900495,0.1441125,104380.0,104370.0,0.32904308]
[1748737900700,0.1441125,104380.0,104370.0,0.33802349]
[1748737900899,0.1441125,104380.0,104370.0,0.3402686]
[1748737901104,0.1441125,104380.0,104370.0,0.32230772]
[1748737901315,0.1441125,104380.0,104370.0,0.33128824]
[1748737901526,0.1441125,104380.0,104370.0,0.32230772]
[1748737901754,0.1441125,104380.0,104370.0,0.34700415]
[1748737902003,0.17768275,104380.0,104370.0,0.32230772]
[1748737902217,0.17768275,104380.0,104370.0,0.34026876]
[1748737902643,0.17768275,104380.0,104370.0,0.35598467]
[1748737902857,0.17768275,104380.0,104370.0,0.34026876]
[1748737903280,0.17768275,104380.0,104370.0,0.34700415]
[1748737903489,0.1441125,104380.0,104370.0,0.36496519]
[1748737903706,0.1441125,104380.0,104370.0,0.36721032]
[1748737903893,0.32614108,104380.0,104370.0,0.30808032]
[1748737904112,0.32434437,104380.0,104370.0,0.31152654]
[1748737904360,0.32434437,104380.0,104370.0,0.32050715]
[1748737904595,0.37593781,104380.0,104370.0,0.31152654]
[1748737905259,0.3567777,104380.0,104370.0,0.12543524]
[1748737905492,0.3567777,104380.0,104370.0,0.29236441]
[1748737905717,0.3567777,104380.0,104370.0,0.3019457]
[1748737906239,0.3567777,104380.0,104370.0,0.10073847]
[1748737906458,0.34719733,104380.0,104370.0,0.10073847]
[1748737906943,0.34719733,104380.0,104370.0,0.1097193]
[1748737907152,0.34719733,104380.0,104370.0,0.11870015]
[1748737907397,0.34719733,104380.0,104370.0,0.10971931]
[1748737907632,0.34719733,104380.0,104370.0,0.10073847]
[1748737907852,0.34719733,104380.0,104370.0,0.10971938]
[1748737908048,0.34719733,104380.0,104370.0,0.10073847]
[1748737908504,0.34719733,104380.0,104370.0,0.10747416]
[1748737908705,0.34719733,104380.0,104370.0,0.11420985]
[1748737908926,0.34719733,104380.0,104370.0,0.125436]
[1748737909150,0.34719733,104380.0,104370.0,0.10747416]
[1748737909334,0.34719733,104380.0,104370.0,0.11420985]
[1748737909503,0.34719733,104380.0,104370.0,0.10747416]
[1748737910130,0.34719733,104380.0,104370.0,0.1321718]
[1748737910365,0.34719733,104380.0,104370.0,0.14115276]
[1748737910537,0.34719733,104380.0,104370.0,0.13441704]
[1748737910748,0.34719733,104380.0,104370.0,0.15237901]
[1748737910949,0.34719733,104380.0,104370.0,0.14115278]
[1748737911155,0.33159733,104380.0,104370.0,0.13441704]
[1748737911468,0.33159733,104380.0,104370.0,0.14115278]
[1748737911638,0.31599733,104380.0,104370.0,0.14115278]
[1748737912027,0.31599733,104380.0,104370.0,0.14788852]
[1748737912522,0.26440389,104380.0,104370.0,0.36152214]
[1748737912751,0.26440389,104380.0,104370.0,0.37110297]
[1748737912978,0.07279631,104380.0,104370.0,0.64672771]
[1748737913201,0.07279631,104380.0,104370.0,0.63999204]
[1748737913413,0.07279631,104380.0,104370.0,0.37110279]
[1748737913628,0.07279631,104380.0,104370.0,0.37783794]
[1748737913843,0.07279631,104380.0,104370.0,0.37110279]
[1748737914068,0.08237586,104380.0,104370.0,0.39804346]
[1748737914281,0.08237586,104380.0,104370.0,0.37110279]
[1748737914282,0.07279631,104380.0,104370.0,0.37110279]
[1748737914613,0.07279631,104380.0,104370.0,0.38906263]
[1748737914708,0.07279631,104380.0,104370.0,0.37110279]
[1748737914941,0.07279631,104380.0,104370.0,0.39579769]
[1748737915164,0.07279631,104380.0,104370.0,0.46695709]
[1748737915594,0.07279631,104380.0,104370.0,0.47369207]
[1748737915744,0.07279631,104380.0,104370.0,0.47369204]
[1748737915979,0.07279631,104380.0,104370.0,0.473692]
[1748737916153,0.07279631,104380.0,104370.0,0.48267191]
[1748737916352,0.07279631,104380.0,104370.0,0.46695709]
[1748737916563,0.08919631,104380.0,104370.0,0.46695709]
[1748737916801,0.10549631,104380.0,104370.0,0.46695709]
[1748737917239,0.10549631,104380.0,104370.0,0.48077557]
[1748737917472,0.10549631,104380.0,104370.0,0.47404061]
[1748737918086,0.10549631,104380.0,104370.0,0.49200051]
[1748737918283,0.10549631,104380.0,104370.0,0.48302056]
[1748737918628,0.10549631,104380.0,104370.0,0.47404061]
[1748737919057,0.07279631,104380.0,104370.0,1.04628986]
[1748737919922,0.07279631,104380.0,104370.0,1.06200278]
[1748737920108,0.07279631,104380.0,104370.0,1.05302396]
[1748737920342,0.07279631,104380.0,104370.0,1.06424746]
[1748737920562,0.07279631,104380.0,104370.0,1.07098156]
[1748737920830,0.07279631,104380.0,104370.0,1.05526866]
[1748737921054,0.07279631,104380.0,104370.0,1.04628986]
[1748737921735,0.07279631,104380.0,104370.0,1.05302393]
[1748737921943,0.07279631,104380.0,104370.0,1.05526857]
[1748737922214,0.07279631,104380.0,104370.0,1.04628986]
[1748737922423,0.07279631,104380.0,104370.0,1.67313636]
[1748737922636,0.07279631,104380.0,104370.0,1.65517911]
[1748737923078,0.07279631,104380.0,104370.0,1.67313491]
[1748737923266,0.07279631,104380.0,104370.0,1.67986784]
[1748737923722,0.07279631,104380.0,104370.0,1.67278432]
[1748737923935,0.07279631,104380.0,104370.0,1.68059188]
[1748737924150,0.07279631,104380.0,104370.0,1.68732515]
[1748737924359,0.07279631,104380.0,104370.0,1.71607706]
[1748737924575,0.07279631,104380.0,104370.0,1.71607676]
[1748737925018,0.07279631,104380.0,104370.0,1.71607675]
[1748737925235,0.07279631,104380.0,104370.0,1.69138844]
[1748737925623,0.07279631,104380.0,104370.0,1.71607673]
[1748737925827,0.07279631,104380.0,104370.0,1.69138844]
[1748737926031,0.07279631,104380.0,104370.0,1.69812164]
[1748737926178,0.07279631,104380.0,104370.0,1.69138844]
[1748737926380,0.07279631,104380.0,104370.0,1.69812163]
[1748737926607,0.07279631,104380.0,104370.0,1.70934363]
[1748737926874,0.07279631,104380.0,104370.0,1.69138844]
[1748737927289,0.07279631,104380.0,104370.0,1.6981216]
[1748737927502,0.07279631,104380.0,104370.0,1.69138844]
[1748737927929,0.07279631,104380.0,104370.0,1.9240431]
[1748737928138,0.07279631,104380.0,104370.0,1.90608844]
[1748737928360,0.07279631,104380.0,104370.0,1.93077614]
[1748737928567,0.07279631,104380.0,104370.0,1.91282145]
[1748737928781,0.07279631,104380.0,104370.0,1.90608844]
[1748737929428,0.07279631,104380.0,104370.0,1.93077591]
[1748737929641,0.07279631,104380.0,104370.0,2.31988844]
[1748737930802,0.07279631,104380.0,104370.0,2.31688844]
[1748737931014,0.07279631,104380.0,104370.0,2.31388844]
[1748737931223,0.07279631,104380.0,104370.0,2.31788844]
[1748737931401,0.07279631,104380.0,104370.0,2.32288844]
[1748737932050,0.07279631,104380.0,104370.0,2.34084201]
[1748737932256,0.07279631,104380.0,104370.0,2.32712175]
[1748737932464,0.07279631,104380.0,104370.0,2.36180797]
[1748737932679,0.07279631,104380.0,104370.0,2.33712175]
[1748737933751,0.07279631,104380.0,104370.0,2.36180776]
[1748737933966,0.07279631,104380.0,104370.0,2.33712175]
[1748737934385,0.07279631,104380.0,104370.0,2.35507524]
[1748737934611,0.07279631,104380.0,104370.0,2.33712175]
[1748737934817,0.07279631,104380.0,104370.0,2.38712175]
[1748737935029,0.06606391,104380.0,104370.0,2.38712175]
[1748737935235,0.06606391,104380.0,104370.0,2.41180719]
[1748737935442,0.06606391,104380.0,104370.0,2.38712175]
[1748737936024,0.06606391,104380.0,104370.0,2.39381817]
[1748737936406,0.06606391,104380.0,104370.0,2.38712175]
[1748737936608,0.01053238,104380.0,104370.0,2.38712175]
[1748737936964,0.01053238,104380.0,104370.0,2.41167478]
[1748737937177,0.00287286,104380.0,104370.0,2.41167438]
[1748737937429,0.07640253,104410.0,104400.0,0.2203054]
[1748737937569,0.07640253,104410.0,104400.0,1.21620501]
[1748737937771,0.07640253,104410.0,104400.0,1.8250942]
[1748737938393,0.07640253,104410.0,104400.0,1.82510269]
[1748737938594,0.07840253,104410.0,104400.0,1.83480247]
[1748737939308,0.07840253,104410.0,104400.0,1.8348802]
[1748737939309,0.00204844,104410.0,104400.0,1.8348802]
[1748737939514,0.00204844,104410.0,104400.0,1.85394812]
[1748737939963,0.00204844,104410.0,104400.0,1.85395226]
[1748737940195,0.00204844,104410.0,104400.0,1.45527226]
[1748737940334,0.00204844,104410.0,104400.0,1.85267226]
[1748737940752,0.00204844,104410.0,104400.0,1.85267731]
[1748737940955,0.00204844,104410.0,104400.0,1.83480588]
[1748737941190,0.00204844,104410.0,104400.0,1.85267745]
[1748737941392,0.00204844,104410.0,104400.0,1.85267758]
[1748737942043,0.00204844,104410.0,104400.0,1.85268198]
[1748737942253,0.00204844,104410.0,104400.0,1.85268201]
[1748737942482,0.00204844,104410.0,104400.0,1.852682]
[1748737942697,0.00204844,104410.0,104400.0,1.85268595]
[1748737942913,0.00204844,104410.0,104400.0,1.83480588]
[1748737943134,0.00204844,104410.0,104400.0,1.85268598]
[1748737943362,0.00204844,104410.0,104400.0,1.8526859]
[1748737943833,0.00204844,104410.0,104400.0,1.85268943]
[1748737944059,0.00204844,104410.0,104400.0,1.85268941]
[1748737945209,0.00204844,104410.0,104400.0,1.86723027]
[1748737945405,0.00204844,104410.0,104400.0,1.86732973]
[1748737945605,0.00204844,104410.0,104400.0,1.86732954]
[1748737945809,0.07705478,104450.0,104440.0,0.22022102]
[1748737946014,0.07710354,104450.0,104440.0,0.60284738]
[1748737946336,0.07710354,104450.0,104440.0,0.60284489]
[1748737946541,0.07710354,104450.0,104440.0,0.60284488]
[1748737947166,0.07710354,104450.0,104440.0,0.60283584]
[1748737947488,0.08010354,104450.0,104440.0,0.60283583]
[1748737948346,0.08010354,104450.0,104440.0,0.60282913]
[1748737948548,0.00374945,104450.0,104440.0,0.60282913]
[1748737948778,0.00374945,104450.0,104440.0,0.58496457]
[1748737948990,0.00374945,104450.0,104440.0,0.60282914]
[1748737949659,0.00374945,104450.0,104440.0,0.6028252]
[1748737949863,0.00374945,104450.0,104440.0,0.60282267]
[1748737950913,0.00374945,104450.0,104440.0,0.60282118]
[1748737951123,0.00374945,104450.0,104440.0,0.33393193]
[1748737951339,0.00374945,104450.0,104440.0,0.58496457]
[1748737951522,0.00374945,104450.0,104440.0,0.60282092]
[1748737951736,0.00374945,104450.0,104440.0,0.60284304]
[1748737952377,0.00374945,104450.0,104440.0,0.58496457]
[1748737952647,0.00074945,104450.0,104440.0,0.58496457]
[1748737952859,0.00174945,104450.0,104440.0,0.60284084]
[1748737953279,0.40082945,104450.0,104440.0,0.60284084]
[1748737953434,0.41712945,104450.0,104440.0,0.60284084]
[1748737953637,0.41712945,104450.0,104440.0,0.58496457]
[1748737954025,0.41712945,104450.0,104440.0,0.60283951]
[1748737954498,0.41712945,104450.0,104440.0,0.81763951]
[1748737954695,0.41712945,104450.0,104440.0,0.81763952]
[1748737955124,0.41712945,104450.0,104440.0,0.8176388]
[1748737955764,0.41712945,104450.0,104440.0,0.9041988]
[1748737956147,0.41712945,104450.0,104440.0,0.98136457]
[1748737956625,0.41712945,104450.0,104440.0,0.73034928]
[1748737956850,0.41712945,104450.0,104440.0,0.33394928]
[1748737957058,0.42670276,104450.0,104440.0,0.33394928]
[1748737957281,0.41712945,104450.0,104440.0,0.33394928]
[1748737957507,0.41712945,104450.0,104440.0,0.33395052]
[1748737957917,0.41712945,104450.0,104440.0,0.33395054]
[1748737958554,0.41712945,104450.0,104440.0,0.33395051]
[1748737959004,0.41712945,104450.0,104440.0,0.31607532]
[1748737959214,0.41712945,104450.0,104440.0,0.33395166]
[1748737959846,0.41712945,104450.0,104440.0,0.33395282]
[1748737960057,0.41712945,104450.0,104440.0,0.63515282]
[1748737960333,0.41712945,104450.0,104440.0,0.63515281]
[1748737961194,0.41712945,104450.0,104440.0,0.61727532]
[1748737961424,0.41712945,104450.0,104440.0,0.33395393]
[1748737961628,0.43627598,104450.0,104440.0,0.30175392]
[1748737961829,0.44584948,104450.0,104440.0,0.33047743]
[1748737962191,0.44584948,104450.0,104440.0,0.33047898]
[1748737962613,0.42954948,104450.0,104440.0,0.33048023]
[1748737963011,0.43912316,104450.0,104440.0,0.33048023]
[1748737963239,0.43912316,104450.0,104440.0,0.31259883]
[1748737963416,0.43912316,104450.0,104440.0,0.33048028]
[1748737963617,0.42302307,104450.0,104440.0,0.33048028]
[1748737963815,0.42302307,104450.0,104440.0,0.33048027]
[1748737964157,0.42302307,104450.0,104440.0,0.33048145]
[1748737964318,0.40387598,104450.0,104440.0,0.33048145]
[1748737964518,0.41344957,104450.0,104440.0,0.33048145]
[1748737964748,0.40387598,104450.0,104440.0,0.33048145]
[1748737964947,0.41344957,104450.0,104440.0,0.33048144]
[1748737965171,0.02872297,104440.0,104430.0,0.22022609]
[1748737965391,0.41349949,104440.0,104430.0,0.24768616]
[1748737965601,0.39255405,104440.0,104430.0,0.24768596]
[1748737965805,0.38298,104440.0,104430.0,0.32565554]
[1748737965961,0.38298,104440.0,104430.0,0.34354044]
[1748737966436,0.39255414,104440.0,104430.0,0.64518044]
[1748737966575,0.39255414,104440.0,104430.0,0.64618626]
[1748737966780,0.39255414,104440.0,104430.0,0.64718626]
[1748737967197,0.39255414,104440.0,104430.0,0.6471872]
[1748737967853,0.40212846,104440.0,104430.0,0.6471872]
[1748737968216,0.41170306,104440.0,104430.0,0.64719207]
[1748737968420,0.41170296,104440.0,104430.0,0.64691208]
[1748737968620,0.41170296,104440.0,104430.0,0.6469133]
[1748737968851,0.41170296,104440.0,104430.0,0.64691332]
[1748737969018,0.41170296,104440.0,104430.0,0.62901554]
[1748737969219,0.41170296,104440.0,104430.0,0.64691385]
[1748737969421,0.40212846,104440.0,104430.0,0.64691385]
[1748737970245,0.41170287,104440.0,104430.0,0.64691385]
[1748737970411,0.41170287,104440.0,104430.0,0.64671385]
[1748737970780,0.40212846,104440.0,104430.0,0.62881554]
[1748737971003,0.41832846,104440.0,104430.0,0.64671815]
[1748737971231,0.41832846,104440.0,104430.0,0.34555815]
[1748737971459,0.43352846,104440.0,104430.0,0.62873554]
[1748737971716,0.41438,104440.0,104430.0,0.64663847]
[1748737971956,0.42395414,104440.0,104430.0,0.64663847]
[1748737972107,0.42395405,104440.0,104430.0,0.64663847]
[1748737972336,0.41438,104440.0,104430.0,0.64663847]
[1748737972543,0.42395405,104440.0,104430.0,0.64664053]
[1748737972752,0.41438,104440.0,104430.0,0.64664053]
[1748737972939,0.41438,104440.0,104430.0,0.64664304]
[1748737974312,0.41438,104440.0,104430.0,0.62873554]
[1748737974524,0.41438,104440.0,104430.0,0.6466457]
[1748737974723,0.41438,104440.0,104430.0,0.64664551]
[1748737974925,0.41438,104440.0,104430.0,0.64664538]
[1748737975590,0.41438,104440.0,104430.0,0.64664504]
[1748737975828,0.39818,104440.0,104430.0,0.64664504]
[1748737976035,0.39818,104440.0,104430.0,0.62873554]
[1748737976293,0.39818,104440.0,104430.0,0.6466459]
[1748737976659,0.39818,104440.0,104430.0,0.64664532]
[1748737976838,0.41448,104440.0,104430.0,0.64664532]
[1748737977176,0.41448,104440.0,104430.0,0.34556532]
[1748737977380,0.41448,104440.0,104430.0,0.64656532]
[1748737977914,0.41448,104440.0,104430.0,0.64656443]
[1748737978748,0.42405405,104440.0,104430.0,0.64656443]
[1748737978959,0.41448,104440.0,104430.0,0.64656443]
[1748737979420,0.43362873,104440.0,104430.0,0.34556427]
[1748737979625,0.43362873,104440.0,104430.0,0.64632427]
[1748737979825,0.43362864,104440.0,104430.0,0.64632427]
[1748737980048,0.68962754,104440.0,104430.0,0.21142457]
[1748737980272,0.68962754,104440.0,104430.0,0.002]
[1748737980487,0.68962754,104440.0,104430.0,0.01991021]
[1748737980696,0.76598163,104440.0,104430.0,0.01991021]
[1748737980907,1.12052248,104440.0,104430.0,0.00431021]
[1748737981119,1.12052248,104440.0,104410.0,0.210664]
[1748737981120,0.02872865,104420.0,104410.0,0.210664]
[1748737981336,0.04010188,104420.0,104410.0,0.21961632]
[1748737981549,0.42308252,104420.0,104410.0,0.22919422]
[1748737981777,0.61281999,104420.0,104410.0,0.23877156]
[1748737981988,0.64391999,104420.0,104410.0,0.24834903]
[1748737982201,0.63434374,104420.0,104410.0,0.0089529]
[1748737982416,0.63434374,104420.0,104410.0,0.22923765]
[1748737982629,0.63434374,104420.0,104410.0,0.21007812]
[1748737982835,0.62476731,104420.0,104410.0,0.22065556]
[1748737983025,0.62476731,104420.0,104410.0,0.23981019]
[1748737983379,0.62476731,104420.0,104410.0,0.23086219]
[1748737983790,0.62476731,104420.0,104410.0,0.23980668]
[1748737984246,0.62476731,104420.0,104410.0,0.23980659]
[1748737984861,0.62476731,104420.0,104410.0,0.23980387]
[1748737985419,0.61519079,104420.0,104410.0,0.23022667]
[1748737985617,0.61519079,104420.0,104410.0,0.23980196]
[1748737985824,0.61519079,104420.0,104410.0,0.24937912]
[1748737986030,0.61519079,104420.0,104410.0,0.23022471]
[1748737986459,0.61519079,104420.0,104410.0,0.23022466]
[1748737986618,0.64655166,104420.0,104410.0,0.22128494]
[1748737987045,0.63135166,104420.0,104410.0,0.21170759]
[1748737987246,0.62177505,104420.0,104410.0,0.21170759]
[1748737987478,0.60587505,104420.0,104410.0,0.21170759]
[1748737987717,0.60587505,104420.0,104410.0,0.22064799]
[1748737987950,0.60587505,104420.0,104410.0,0.22128494]
[1748737988161,0.60587505,104420.0,104410.0,0.01951803]
[1748737988374,0.60587505,104420.0,104410.0,0.21107064]
[1748737988595,0.60587505,104420.0,104410.0,0.21170759]
[1748737988803,0.38298,104420.0,104410.0,0.89600537]
[1748737989218,0.38298,104420.0,104410.0,0.62711612]
[1748737989821,0.38298,104420.0,104410.0,0.62743612]
[1748737990027,0.38298,104420.0,104410.0,0.62747612]
[1748737994523,0.38298,104420.0,104410.0,0.62719612]
[1748737995811,0.38298,104420.0,104410.0,0.32671612]
[1748737996262,0.39255634,104420.0,104410.0,0.23086182]
[1748737996478,0.39255606,104420.0,104410.0,0.23086182]
[1748737996707,0.40213231,104420.0,104410.0,0.23086182]
[1748737996928,0.42128517,104420.0,104410.0,0.24043889]
[1748737997133,0.42128517,104420.0,104410.0,0.24938458]
[1748737997350,0.60324283,104420.0,104410.0,0.20149822]
[1748737997545,0.60324329,104420.0,104410.0,0.23023035]
[1748737997717,0.60324329,104420.0,104410.0,0.23023108]
[1748737997718,0.61281999,104420.0,104410.0,0.23023108]
[1748737997918,0.61281999,104420.0,104410.0,0.23023115]
[1748737998388,0.60324374,104420.0,104410.0,0.21107665]
[1748737998594,0.69575496,104420.0,104410.0,0.23023179]
[1748737998989,0.68617862,104420.0,104410.0,0.00994685]
[1748737999468,0.69114295,104420.0,104410.0,0.00994548]
[1748737999717,0.70694295,104420.0,104410.0,0.001]
[1748737999950,1.06224295,104420.0,104410.0,0.001]
[1748738000206,1.15809725,104420.0,104410.0,0.001]
[1748738000410,1.57177725,104420.0,104410.0,0.001]
[1748738000623,0.02873699,104390.0,104380.0,0.2203167]
[1748738000840,0.42309306,104390.0,104380.0,0.22989671]
[1748738001053,0.61288558,104390.0,104380.0,0.2298968]
[1748738001266,0.42129635,104390.0,104380.0,0.23947653]
[1748738001470,0.51380757,104390.0,104380.0,0.24842412]
[1748738001678,0.68623908,104390.0,104380.0,0.19160758]
[1748738001889,0.68623908,104390.0,104380.0,0.20118786]
[1748738002120,0.68723908,104390.0,104380.0,0.00048803]
[1748738002954,1.04277993,104390.0,104380.0,0.00048803]
[1748738003159,1.05214899,104390.0,104380.0,0.00048803]
[1748738003821,1.14800329,104390.0,104380.0,0.00048803]
[1748738004695,1.14700329,104390.0,104380.0,0.00048803]
[1748738004903,1.14600329,104390.0,104380.0,0.00048803]
[1748738005108,1.14900329,104390.0,104380.0,0.00048803]